bitfinex-derivatives/quotes_ETHF0:USTF0_20240924
["timestamp","ask_amount","ask_price","bid_price","bid_amount"]
[1727141719671,0.38074,2626.5,2626.4,3.2078]
[1727141719854,0.38072,2626.6,2626.4,3.2078]
[1727141720166,0.38074,2626.5,2626.4,3.2078]
[1727141721062,3.8072,2626.5,2626.0,0.3666]
[1727141721263,3.2078,2626.2,2625.6,0.3987]
[1727141721566,3.2078,2626.2,2625.5,3.2078]
[1727141721567,0.3808,2626.1,2625.5,3.2078]
[1727141722156,3.2078,2626.2,2625.5,3.2078]
[1727141722356,0.38083,2625.9,2625.5,3.2078]
[1727141722567,3.2078,2626.2,2625.5,3.2078]
[1727141722763,0.3808,2626.1,2625.5,3.2078]
[1727141723361,3.2078,2626.6,2625.8,3.2078]
[1727141723664,0.38076,2626.4,2625.8,3.2078]
[1727141724058,3.58852,2626.6,2625.9,0.38081]
[1727141724263,3.58853,2626.6,2625.9,0.38082]
[1727141724460,0.38075,2626.5,2626.0,0.3626]
[1727141724857,0.38075,2626.4,2626.0,0.3626]
[1727141725163,0.38077,2626.3,2626.0,0.3626]
[1727141725363,3.2078,2626.6,2625.8,3.2078]
[1727141725557,0.3808,2626.1,2625.8,3.2078]
[1727141725758,0.38081,2626.0,2625.8,3.2078]
[1727141726166,0.38081,2626.0,2625.8,7.0158]
[1727141726467,0.3808,2626.1,2625.8,7.0158]
[1727141726667,3.2078,2626.3,2625.8,3.2078]
[1727141727168,3.2078,2626.3,2625.4,3.5797]
[1727141727169,3.2078,2626.0,2625.4,3.5797]
[1727141727465,0.95195,2626.2,2624.7,3.2078]
[1727141727466,3.2078,2625.7,2624.7,3.2078]
[1727141727768,3.2078,2625.4,2624.9,0.3674]
[1727141728067,0.38091,2625.3,2624.9,0.3674]
[1727141728263,3.2078,2625.4,2624.9,0.3674]
[1727141728464,0.38089,2625.5,2625.0,3.2078]
[1727141728666,3.71,2625.5,2624.9,0.3674]
[1727141728860,0.38095,2625.0,2624.9,0.3674]
[1727141729163,3.2078,2625.1,2624.3,0.362]
[1727141729465,0.38099,2624.8,2624.3,41.5404]
[1727141729670,0.38101,2624.7,2624.3,0.7404]
[1727141730267,3.71,2624.8,2624.3,3.9482]
[1727141730460,0.38102,2624.6,2624.3,3.9482]
[1727141730966,0.38104,2624.4,2624.3,3.9482]
[1727141731264,3.71,2624.8,2624.3,3.5698]
[1727141731658,3.71,2624.8,2624.3,3.95085]
[1727141732167,3.71,2624.8,2624.3,3.5698]
[1727141732667,3.71,2624.4,2624.3,3.5698]
[1727141732863,4.09104,2624.4,2624.3,3.5698]
[1727141734169,3.71,2624.4,2624.3,3.5698]
[1727141734354,4.09104,2624.4,2624.3,3.5698]
[1727141734559,3.71,2624.4,2624.3,3.5698]
[1727141734970,4.09104,2624.4,2624.3,3.5698]
[1727141735758,10.7282,2624.4,2623.7,3.2078]
[1727141735965,4.09112,2623.9,2623.5,0.7402]
[1727141736165,3.71,2623.9,2623.5,0.7402]
[1727141736362,0.38114,2623.7,2623.5,0.7402]
[1727141736769,4.09116,2623.6,2623.3,40.8]
[1727141736970,4.09116,2623.6,2623.1,0.3866]
[1727141736971,3.2078,2623.5,2622.7,3.948]
[1727141737264,4.09127,2622.8,2622.7,0.3704]
[1727141737669,0.38129,2622.7,2622.3,3.2078]
[1727141737861,5.52697,2623.4,2622.3,3.95954]
[1727141737862,0.38125,2623.0,2622.3,3.95954]
[1727141738058,4.09125,2623.0,2622.4,40.8]
[1727141738471,0.38126,2622.9,2622.4,40.8]
[1727141740374,3.71,2623.0,2622.4,40.8]
[1727141740575,0.38129,2622.7,2622.4,40.8]
[1727141740967,0.3813,2622.6,2622.3,3.5782]
[1727141741161,0.38132,2622.5,2622.3,3.5782]
[1727141741661,0.38129,2622.7,2622.3,7.3918]
[1727141741866,3.2078,2622.9,2622.3,3.5782]
[1727141742370,3.58907,2622.9,2622.3,3.95954]
[1727141742677,3.2078,2622.9,2622.3,3.5782]
[1727141742869,0.38125,2623.0,2622.6,3.2078]
[1727141743172,0.38124,2623.1,2622.7,3.8128]
[1727141743473,3.2078,2623.4,2622.6,3.2078]
[1727141743668,0.38115,2623.7,2623.2,0.38121]
[1727141743869,3.71,2623.8,2623.3,0.7417]
[1727141744165,0.38116,2623.6,2623.3,0.7432]
[1727141744566,3.71,2623.5,2622.9,3.2078]
[1727141744764,0.38123,2623.2,2622.9,3.2078]
[1727141744968,0.38123,2623.1,2622.9,3.2078]
[1727141745168,0.38122,2623.2,2622.9,3.2078]
[1727141745371,0.3812,2623.3,2622.9,3.2078]
[1727141745581,3.71,2623.8,2623.2,3.2078]
[1727141745766,0.38119,2623.4,2623.0,0.38124]
[1727141745963,0.3812,2623.4,2622.9,3.58905]
[1727141746164,0.3812,2623.4,2623.0,40.8]
[1727141746767,0.38118,2623.5,2623.1,0.38123]
[1727141746973,3.71,2623.8,2623.2,3.58901]
[1727141747169,3.71,2623.8,2623.3,0.3833]
[1727141747770,0.38112,2623.9,2623.4,0.38119]
[1727141748275,0.38112,2623.9,2623.3,0.7464]
[1727141748276,3.2078,2624.0,2623.3,0.7464]
[1727141748477,8.359,2624.2,2623.5,3.2078]
[1727141748478,3.71,2624.2,2623.5,3.2078]
[1727141749480,0.38112,2623.9,2623.5,3.58897]
[1727141749671,0.38112,2623.9,2623.5,3.2078]
[1727141750376,0.38114,2623.8,2623.5,3.2078]
[1727141750780,0.38114,2623.8,2623.5,7.019]
[1727141750967,0.38112,2623.9,2623.5,7.019]
[1727141751173,3.71,2624.2,2623.5,3.2078]
[1727141751379,0.38111,2624.0,2623.5,3.58896]
[1727141751578,0.38111,2624.0,2623.6,0.38115]
[1727141752669,3.71,2624.2,2623.5,3.2078]
[1727141752874,0.38106,2624.3,2623.9,0.38111]
[1727141753181,0.38106,2624.3,2624.0,0.3618]
[1727141753978,0.38107,2624.2,2624.0,0.3618]
[1727141755173,0.38107,2624.3,2624.0,0.3618]
[1727141755778,3.71,2624.5,2624.1,3.2078]
[1727141755980,0.38105,2624.4,2624.1,0.3925]
[1727141756285,4.09104,2624.5,2624.2,40.8]
[1727141756681,4.09103,2624.5,2624.2,40.8]
[1727141757381,0.38104,2624.4,2624.2,40.8]
[1727141758177,4.09103,2624.5,2624.2,40.8]
[1727141758582,4.09103,2624.5,2624.1,0.77358]
[1727141759083,3.2078,2624.8,2624.1,41.1925]
[1727141759276,0.38095,2625.1,2624.7,0.38098]
[1727141759475,0.38095,2625.1,2624.8,0.3664]
[1727141759476,0.38094,2625.1,2624.8,0.3664]
[1727141759675,1.24384,2625.7,2624.9,3.2078]
[1727141759676,4.0017,2625.7,2624.9,3.2078]
[1727141759885,3.71,2625.7,2625.2,3.2078]
[1727141760079,0.38088,2625.6,2625.2,3.2078]
[1727141760279,0.38088,2625.5,2625.2,3.2078]
[1727141760593,0.38094,2625.1,2625.0,0.3958]
[1727141760786,3.29,2625.3,2624.8,0.3664]
[1727141760977,0.38097,2624.9,2624.8,0.3664]
[1727141761281,0.38097,2624.9,2624.6,3.2078]
[1727141761282,0.381,2624.7,2624.6,3.2078]
[1727141761485,0.381,2624.7,2624.3,0.3958]
[1727141761486,3.29,2624.7,2624.3,0.3958]
[1727141761690,0.38103,2624.5,2624.4,3.2078]
[1727141762075,0.38105,2624.3,2624.2,0.3664]
[1727141762984,3.67105,2624.4,2624.2,0.3664]
[1727141763188,0.38105,2624.3,2624.2,0.3664]
[1727141763684,3.29,2624.4,2624.2,0.3664]
[1727141763992,1.24387,2625.1,2624.2,0.74747]
[1727141763993,3.671,2624.7,2624.2,0.74747]
[1727141764184,3.4993,2625.1,2624.2,0.74747]
[1727141764185,3.29,2625.0,2624.4,3.2078]
[1727141764377,3.58875,2625.1,2624.6,0.38101]
[1727141764578,0.38095,2625.1,2624.7,3.2078]
[1727141765384,0.38095,2625.0,2624.7,3.2078]
[1727141765583,6.9178,2625.7,2625.0,0.38094]
[1727141765783,0.38089,2625.4,2625.1,0.7745]
[1727141766284,3.58865,2625.7,2625.3,3.2078]
[1727141766592,0.38089,2625.4,2625.3,3.2078]
[1727141767288,0.38089,2625.5,2625.3,3.2078]
[1727141767488,0.38089,2625.4,2625.3,3.2078]
[1727141767881,4.18969,2625.4,2625.3,3.2078]
[1727141768890,0.38089,2625.4,2625.3,3.2078]
[1727141769192,0.38089,2625.5,2625.3,3.2078]
[1727141769490,3.71,2625.7,2625.3,3.2078]
[1727141769995,0.38089,2625.5,2625.3,3.2078]
[1727141770185,3.71,2625.7,2625.3,3.2078]
[1727141770186,0.38089,2625.4,2625.3,3.2078]
[1727141770692,4.18969,2625.4,2625.3,3.2078]
[1727141770888,7.89969,2625.4,2625.3,3.2078]
[1727141771287,0.38095,2625.1,2624.6,3.5907]
[1727141771493,0.38092,2625.3,2624.9,3.2078]
[1727141771686,4.66227,2625.4,2624.9,3.2078]
[1727141771881,0.95228,2625.3,2624.6,0.3829]
[1727141772179,0.381,2624.7,2624.6,0.3829]
[1727141772384,0.381,2624.7,2624.2,3.2078]
[1727141772385,3.71,2625.0,2624.2,3.2078]
[1727141772587,0.38098,2624.9,2624.5,3.2078]
[1727141772799,4.68554118,2625.4,2624.5,3.2078]
[1727141772984,4.68554118,2625.4,2624.5,3.58882]
[1727141773384,4.68554118,2625.4,2624.5,3.2078]
[1727141773589,0.38092,2625.3,2624.8,3.58878]
[1727141773785,4.18334118,2625.5,2624.8,3.2078]
[1727141773786,3.2078,2625.5,2624.8,3.2078]
[1727141773983,4.8433,2625.6,2624.8,3.2078]
[1727141774194,0.38097,2624.9,2624.8,3.2078]
[1727141774388,6.9178,2625.4,2624.4,0.3877]
[1727141774389,6.9178,2625.0,2624.4,3.5955]
[1727141774697,0.38103,2624.5,2624.4,3.5955]
[1727141774891,0.38102,2624.6,2624.4,3.5955]
[1727141775191,0.381,2624.7,2624.4,3.5955]
[1727141775392,0.38102,2624.6,2624.4,3.5955]
[1727141775603,6.9178,2625.0,2624.4,3.5955]
[1727141775604,0.381,2624.7,2624.4,3.5955]
[1727141775784,0.38101,2624.6,2624.4,0.3877]
[1727141775982,0.38103,2624.5,2624.4,0.3877]
[1727141776296,0.95246,2624.8,2624.3,0.3986]
[1727141776688,0.38104,2624.5,2624.3,0.3986]
[1727141776990,0.38102,2624.6,2624.3,0.3986]
[1727141777201,7.2089,2625.0,2624.4,3.2078]
[1727141777387,7.2089,2625.0,2624.3,0.3986]
[1727141777588,7.2089,2625.0,2624.4,3.2078]
[1727141777788,0.38097,2624.9,2624.4,3.2078]
[1727141778195,0.38093,2625.2,2624.8,3.2078]
[1727141778392,3.2078,2625.4,2624.5,3.58882]
[1727141778393,0.38095,2625.1,2624.5,3.58882]
[1727141778588,0.38095,2625.1,2624.6,0.77311]
[1727141778790,0.38095,2625.1,2624.6,0.3921]
[1727141778985,0.38095,2625.1,2624.8,3.2078]
[1727141779293,0.38096,2624.9,2624.8,3.2078]
[1727141779792,4.19056,2624.9,2624.8,3.2078]
[1727141780986,0.38096,2625.0,2624.8,3.2078]
[1727141781298,0.38095,2625.1,2624.8,3.2078]
[1727141782003,6.9178,2625.4,2624.8,3.2078]
[1727141782190,0.38093,2625.2,2624.8,3.2078]
[1727141782693,0.38087,2625.6,2625.1,3.58873]
[1727141783001,0.38087,2625.6,2625.2,0.3904]
[1727141783192,3.71,2625.7,2625.2,0.3904]
[1727141783998,0.38089,2625.4,2625.2,0.3904]
[1727141784302,0.38089,2625.5,2625.2,0.3904]
[1727141784504,0.38087,2625.6,2625.2,0.3904]
[1727141784897,3.29,2625.7,2625.2,0.3904]
[1727141784898,0.38088,2625.5,2625.2,0.3904]
[1727141785097,3.2078,2625.9,2625.2,0.3904]
[1727141785288,3.2078,2625.9,2625.3,0.3809]
[1727141785489,0.38083,2625.8,2625.4,0.38089]
[1727141785796,0.38083,2625.8,2625.5,40.8]
[1727141785995,0.38083,2625.8,2625.5,41.1663]
[1727141786902,0.97554118,2625.8,2625.7,3.2078]
[1727141787103,6.4978,2626.4,2625.7,3.2078]
[1727141787104,1.97413323,2626.3,2626.1,0.38079]
[1727141787405,1.97413323,2626.7,2626.5,0.38073]
[1727141787695,5.18193323,2627.0,2626.6,0.38071]
[1727141787896,3.2078,2627.0,2626.6,0.38071]
[1727141788202,7.59277044,2627.6,2626.6,0.38071]
[1727141788203,1.97413323,2627.8,2627.4,0.38059]
[1727141788508,1.97413323,2628.0,2627.4,3.2078]
[1727141788805,1.97413323,2628.2,2627.4,44.0078]
[1727141789099,3.29,2628.0,2627.4,44.0078]
[1727141789288,3.29,2627.7,2627.4,3.2078]
[1727141789598,0.38059,2627.5,2627.4,3.2078]
[1727141789802,0.38058,2627.6,2627.1,41.18065]
[1727141789990,6.4978,2628.0,2627.1,40.8]
[1727141789991,3.29,2627.7,2627.1,40.8]
[1727141790190,0.3806,2627.5,2627.1,40.8]
[1727141790391,0.38059,2627.5,2627.1,40.8]
[1727141790798,6.4978,2628.0,2627.1,40.8]
[1727141790995,0.3806,2627.5,2627.1,40.8]
[1727141791194,6.4978,2628.0,2627.1,40.8]
[1727141791195,0.38058,2627.6,2627.1,41.18065]
[1727141791594,3.2078,2628.0,2627.1,40.8]
[1727141791904,3.2078,2628.3,2627.8,3.2078]
[1727141792097,3.29,2629.2,2628.1,3.2078]
[1727141792293,0.38042,2628.7,2628.2,0.3732]
[1727141792600,3.29,2629.2,2628.4,3.2078]
[1727141792804,0.38043,2628.7,2628.4,3.2078]
[1727141792999,0.3804,2628.8,2628.2,0.3732]
[1727141793297,0.38042,2628.7,2628.2,0.3732]
[1727141793691,0.38043,2628.6,2628.2,0.3732]
[1727141794100,0.38044,2628.5,2628.1,3.2078]
[1727141794294,0.38043,2628.6,2628.1,3.2078]
[1727141794498,3.2078,2628.7,2627.9,0.3651]
[1727141794796,3.29,2628.8,2627.9,0.3651]
[1727141794999,0.38045,2628.5,2627.9,0.3651]
[1727141795193,3.2078,2628.7,2627.9,0.3651]
[1727141795390,3.29,2628.8,2628.1,3.2078]
[1727141795597,0.38046,2628.4,2628.1,3.2078]
[1727141795797,3.2078,2628.7,2628.1,3.2078]
[1727141795997,0.38047,2628.3,2628.1,3.2078]
[1727141796301,0.38048,2628.3,2628.1,3.2078]
[1727141796599,0.38049,2628.2,2628.1,3.2078]
[1727141796803,0.38046,2628.4,2628.1,3.2078]
[1727141797107,3.5781,2628.7,2628.1,3.2078]
[1727141797108,0.3703,2628.7,2628.1,3.2078]
[1727141797293,0.38044,2628.6,2628.1,3.2078]
[1727141798312,0.75073,2628.7,2628.1,3.2078]
[1727141798498,0.38043,2628.6,2628.1,3.2078]
[1727141798804,0.38045,2628.5,2628.1,3.2078]
[1727141799202,3.5781,2628.7,2628.1,3.2078]
[1727141799410,0.38049,2628.2,2628.1,3.2078]
[1727141799602,0.38048,2628.3,2628.1,3.2078]
[1727141800804,3.5781,2628.7,2628.1,3.2078]
[1727141801304,0.38046,2628.4,2628.1,3.2078]
[1727141802108,0.38047,2628.3,2628.1,3.2078]
[1727141802301,3.2078,2628.7,2628.1,3.2078]
[1727141802498,4.082,2629.0,2628.4,3.2078]
[1727141802708,0.3804,2628.8,2628.4,3.2078]
[1727141803097,0.38042,2628.7,2628.4,3.2078]
[1727141803300,0.38042,2628.7,2628.3,0.3615]
[1727141803703,0.38043,2628.6,2628.3,0.3615]
[1727141804007,4.082,2629.0,2628.1,3.2078]
[1727141804008,0.38045,2628.5,2628.1,3.2078]
[1727141804201,0.38046,2628.4,2628.1,3.2078]
[1727141804607,0.38045,2628.5,2628.2,3.8048]
[1727141804807,0.38046,2628.4,2628.1,3.2078]
[1727141805709,0.38048,2628.3,2628.1,3.2078]
[1727141806218,0.38047,2628.4,2628.1,3.2078]
[1727141806605,0.388,2628.7,2628.1,3.2078]
[1727141806809,0.38046,2628.5,2628.1,3.2078]
[1727141807011,0.38047,2628.4,2628.1,3.2078]
[1727141807409,0.38045,2628.5,2628.1,3.2078]
[1727141807605,0.38047,2628.4,2628.1,3.2078]
[1727141807811,0.38045,2628.5,2628.1,3.2078]
[1727141808008,0.38043,2628.7,2628.4,3.2078]
[1727141808221,0.38044,2628.6,2628.4,3.2078]
[1727141808410,0.38044,2628.6,2628.1,3.2078]
[1727141808612,3.2078,2629.1,2628.3,0.38048]
[1727141809021,3.2078,2629.1,2628.3,0.77828]
[1727141809209,0.38043,2628.7,2628.3,0.3978]
[1727141809409,0.38043,2628.6,2628.3,0.3978]
[1727141809723,3.2078,2629.1,2628.3,0.3978]
[1727141809724,0.38043,2628.7,2628.3,0.3978]
[1727141810109,0.38043,2628.7,2628.3,4.2026]
[1727141810618,0.38044,2628.6,2628.3,4.2026]
[1727141810823,0.38044,2628.6,2628.4,3.8048]
[1727141811329,0.38043,2628.7,2628.2,41.18048]
[1727141811525,6.4978,2629.1,2628.2,41.18048]
[1727141811526,3.2078,2629.1,2628.4,3.2078]
[1727141812022,0.3804,2628.9,2628.5,0.38045]
[1727141812224,0.3804,2628.9,2628.6,0.3903]
[1727141812622,0.38038,2629.0,2628.6,0.77073]
[1727141812818,0.38038,2629.0,2628.6,0.3903]
[1727141813226,3.58817,2629.1,2628.6,0.7597]
[1727141813426,3.58817,2629.1,2628.7,0.38042]
[1727141813628,3.2078,2629.1,2628.6,0.7597]
[1727141813827,0.38038,2629.0,2628.6,1.14013]
[1727141814025,0.38031,2629.5,2628.8,6.4978]
[1727141814232,0.3803,2629.6,2629.2,0.38034]
[1727141814430,0.3803,2629.6,2629.3,0.3983]
[1727141814833,0.38028,2629.7,2629.4,3.2078]
[1727141815036,0.38024,2630.0,2629.5,0.38029]
[1727141815238,0.3964,2630.2,2629.4,3.2078]
[1727141815433,3.2078,2630.6,2629.7,3.2078]
[1727141815633,0.38019,2630.3,2630.0,3.2078]
[1727141816141,0.38023,2630.1,2629.8,0.3956]
[1727141816439,0.38021,2630.2,2629.8,0.3956]
[1727141816633,0.38026,2629.8,2629.7,40.8]
[1727141816841,3.2078,2630.0,2629.6,3.2078]
[1727141817041,0.3925,2630.2,2629.6,3.2078]
[1727141817245,0.3925,2630.2,2629.6,44.0078]
[1727141817246,0.38022,2630.1,2629.6,44.0078]
[1727141817431,3.2078,2630.3,2629.6,44.0078]
[1727141817628,0.3802,2630.2,2629.6,44.0078]
[1727141817829,3.2078,2630.3,2629.7,0.38027]
[1727141818039,0.38018,2630.4,2629.7,0.38027]
[1727141818238,3.2078,2630.6,2630.0,0.38022]
[1727141818431,3.58794,2630.6,2630.2,3.2078]
[1727141818633,3.2078,2630.6,2630.2,3.2078]
[1727141819133,3.58795,2630.6,2630.3,0.3901]
[1727141819335,0.3801,2631.0,2630.3,0.3901]
[1727141819536,0.38009,2631.0,2630.5,3.2078]
[1727141819739,3.2078,2631.1,2630.6,0.38014]
[1727141819928,0.7795,2631.6,2630.8,3.2078]
[1727141820135,0.38006,2631.2,2630.8,3.2078]
[1727141820437,0.38008,2631.1,2630.8,3.2078]
[1727141820632,0.38007,2631.2,2630.8,3.2078]
[1727141821044,0.38005,2631.3,2630.8,7.0086]
[1727141821338,3.2078,2631.0,2630.3,0.3901]
[1727141821637,3.29,2631.4,2630.5,3.2078]
[1727141821638,3.2078,2631.4,2630.5,3.2078]
[1727141821836,0.38007,2631.1,2630.5,3.2078]
[1727141822037,3.2078,2632.0,2630.8,6.4978]
[1727141822231,3.2078,2632.0,2631.4,3.2078]
[1727141822434,3.2078,2632.0,2631.5,0.3916]
[1727141822838,0.37992,2632.2,2631.7,3.2078]
[1727141823035,3.2078,2632.3,2631.6,40.8]
[1727141823232,3.2078,2632.3,2631.5,0.3916]
[1727141823441,0.37997,2631.9,2631.5,0.3916]
[1727141823746,0.37997,2631.8,2631.5,41.1916]
[1727141823928,3.2078,2632.3,2631.5,41.1916]
[1727141824133,3.2078,2632.3,2631.7,3.2078]
[1727141824330,3.2078,2632.3,2631.8,3.7992]
[1727141824538,3.5877,2632.3,2631.8,4.10290777]
[1727141824738,3.2078,2632.3,2631.7,3.2078]
[1727141825036,5.18193323,2632.3,2631.4,3.58782]
[1727141825243,1.97413323,2632.1,2631.4,3.2078]
[1727141825429,0.37995,2632.0,2631.4,3.2078]
[1727141825630,5.18193323,2632.3,2631.4,3.2078]
[1727141825930,0.37995,2632.0,2631.3,0.3861]
[1727141826235,5.18193323,2632.1,2631.6,0.37999]
[1727141826236,3.2078,2632.1,2631.6,0.37999]
[1727141826639,3.2078,2632.1,2631.7,0.37998]
[1727141827045,1.97413323,2632.4,2631.5,3.2078]
[1727141827242,3.2078,2632.5,2631.8,0.37996]
[1727141827432,3.2078,2632.5,2631.6,4.58173119]
[1727141827632,2.34943323,2632.6,2631.5,7.5028]
[1727141827633,3.2078,2632.2,2631.5,7.5028]
[1727141827839,3.2078,2632.2,2631.5,3.2078]
[1727141828041,0.37996,2631.9,2631.5,3.2078]
[1727141828448,3.2078,2632.2,2631.6,3.8]
[1727141828644,0.37993,2632.1,2631.5,3.2078]
[1727141828947,0.37995,2632.0,2631.5,3.2078]
[1727141829248,0.37993,2632.1,2631.5,3.2078]
[1727141829545,0.37994,2632.0,2631.5,3.2078]
[1727141829734,3.2078,2632.2,2631.5,3.5878]
[1727141829942,3.2078,2632.5,2631.9,3.29]
[1727141830135,3.2078,2632.5,2632.0,4.1745]
[1727141830337,3.2078,2632.5,2632.1,0.3648]
[1727141830542,0.3691,2632.9,2632.1,0.3648]
[1727141830543,0.37985,2632.7,2632.1,7.3718]
[1727141830738,0.37986,2632.6,2632.1,3.5726]
[1727141830934,0.37984,2632.7,2632.1,3.5726]
[1727141831647,0.37984,2632.7,2632.2,40.8]
[1727141831847,3.2078,2632.8,2632.2,40.8]
[1727141832240,3.2078,2632.8,2632.3,0.37989]
[1727141832548,0.3592,2633.1,2632.4,3.2078]
[1727141833048,3.2078,2633.3,2632.5,0.37987]
[1727141833049,0.37978,2633.2,2632.5,0.37987]
[1727141833435,3.2078,2633.3,2632.4,3.2078]
[1727141833644,3.2078,2633.3,2632.1,0.3648]
[1727141833645,3.2078,2632.7,2632.1,0.3648]
[1727141834241,0.94953,2633.0,2632.0,0.3753]
[1727141834242,3.2078,2632.4,2632.0,0.3753]
[1727141834551,3.2078,2632.4,2631.6,0.3777]
[1727141834945,3.2078,2632.4,2631.6,41.1777]
[1727141835255,0.3766,2632.5,2631.8,3.2078]
[1727141835441,0.3766,2632.5,2631.8,3.58776]
[1727141835749,3.2078,2632.4,2631.8,3.2078]
[1727141836246,3.2078,2632.9,2632.1,3.2078]
[1727141836447,3.2078,2632.9,2631.9,7.0892]
[1727141836448,3.6043,2633.2,2632.3,3.2078]
[1727141836648,3.6043,2633.2,2632.3,3.5861]
[1727141836945,3.2078,2632.8,2632.0,3.2078]
[1727141837152,0.3799,2632.3,2632.0,3.2078]
[1727141837449,3.58763,2632.8,2632.1,0.37991]
[1727141837649,3.58763,2632.8,2632.0,3.2078]
[1727141837650,0.37986,2632.6,2632.0,3.2078]
[1727141837949,3.2078,2632.8,2632.0,3.2078]
[1727141838253,0.37984,2632.7,2632.1,0.37991]
[1727141838548,3.58763,2632.8,2632.2,0.37991]
[1727141838848,3.58763,2632.8,2632.3,1.11449]
[1727141839153,0.37985,2632.7,2632.3,0.7346]
[1727141839453,3.58763,2632.8,2632.3,0.7346]
[1727141839750,0.37982,2632.9,2632.4,0.37988]
[1727141840156,0.37982,2632.9,2632.4,0.37987]
[1727141840446,0.37982,2632.9,2632.0,3.2078]
[1727141840447,3.2078,2632.9,2632.3,0.37989]
[1727141840751,3.2078,2632.6,2632.1,4.23446554]
[1727141841052,0.37982,2632.9,2632.1,3.7992]
[1727141841348,0.37982,2632.9,2632.0,6.4978]
[1727141841657,3.2078,2633.0,2632.3,3.66989]
[1727141841857,0.37984,2632.8,2632.1,7.26810434]
[1727141842053,0.37985,2632.7,2632.1,3.2078]
[1727141842351,3.2078,2633.0,2632.2,0.3799]
[1727141842540,3.2078,2633.0,2632.1,3.2078]
[1727141842741,3.2078,2633.0,2632.2,4.31245929]
[1727141842939,3.58764,2632.7,2632.2,0.3799]
[1727141843142,3.2078,2632.7,2632.1,3.2078]
[1727141843351,0.3799,2632.3,2632.1,3.2078]
[1727141843557,3.2078,2632.7,2632.2,3.7992]
[1727141843747,3.58765,2632.7,2632.3,0.3799]
[1727141843943,3.58765,2632.7,2632.1,3.2078]
[1727141843944,3.2078,2632.7,2632.2,3.7992]
[1727141844258,3.2078,2632.7,2632.2,4.33950162]
[1727141844551,3.2078,2633.0,2632.1,3.2078]
[1727141844745,0.37984,2632.8,2632.1,3.2078]
[1727141844941,0.37986,2632.6,2632.1,3.58772]
[1727141845141,0.37986,2632.6,2632.2,0.37991]
[1727141845142,0.37985,2632.6,2632.2,0.37991]
[1727141845355,0.37985,2632.6,2632.1,3.2078]
[1727141845356,3.2078,2633.0,2632.1,3.2078]
[1727141845554,3.2078,2633.0,2632.5,0.37986]
[1727141845755,0.37982,2632.9,2632.4,0.37988]
[1727141846350,3.2078,2633.0,2632.2,4.26979006]
[1727141846547,3.5876,2633.0,2632.5,0.37985]
[1727141846752,3.5876,2633.0,2632.6,0.7469]
[1727141846753,0.37983,2632.8,2632.6,0.7469]
[1727141847050,3.2078,2633.0,2632.1,7.36493135]
[1727141847247,0.37987,2632.6,2632.1,3.58771]
[1727141847444,0.37985,2632.7,2632.3,0.37989]
[1727141847948,3.2078,2633.0,2632.1,3.2078]
[1727141848146,0.37983,2632.8,2632.4,3.58768]
[1727141848345,0.37983,2632.8,2632.3,0.37989]
[1727141848548,0.37985,2632.7,2632.3,0.37989]
[1727141849356,3.2078,2633.0,2632.2,0.3799]
[1727141849651,0.37987,2632.5,2632.2,4.21065226]
[1727141849854,0.37988,2632.5,2632.2,4.21065226]
[1727141850159,3.58766,2632.6,2632.2,0.37991]
[1727141850355,0.3799,2632.3,2632.1,3.2078]
[1727141850653,3.2078,2632.6,2632.1,3.2078]
[1727141850859,0.37989,2632.4,2632.1,3.2078]
[1727141851257,0.3928,2632.8,2632.1,3.2078]
[1727141851258,0.37985,2632.7,2632.1,3.2078]
[1727141851454,0.3928,2632.8,2632.1,3.58772]
[1727141851656,0.37986,2632.6,2632.2,0.37991]
[1727141852157,0.37985,2632.6,2632.1,3.58772]
[1727141852349,3.2078,2632.7,2632.1,3.2078]
[1727141852554,0.37989,2632.4,2632.1,3.2078]
[1727141853358,3.2078,2632.7,2632.1,3.2078]
[1727141853559,1.34596,2633.2,2632.7,0.37984]
[1727141853560,3.2078,2633.1,2632.7,0.37984]
[1727141853751,3.2078,2633.1,2632.8,0.37982]
[1727141854248,0.3743,2633.5,2632.6,0.3869]
[1727141854460,0.37975,2633.4,2632.7,6.4978]
[1727141854657,3.2078,2633.4,2632.7,6.4978]
[1727141854855,3.2078,2633.2,2632.7,3.2078]
[1727141855047,3.2078,2633.3,2632.6,0.3869]
[1727141855251,0.37982,2632.9,2632.6,0.3869]
[1727141855451,3.2078,2633.0,2632.6,0.3869]
[1727141855650,3.2078,2633.0,2632.1,3.58772]
[1727141855651,0.37986,2632.6,2632.1,3.58772]
[1727141856160,3.58765,2632.7,2632.2,0.37991]
[1727141856348,0.37985,2632.7,2632.2,0.37991]
[1727141856553,3.5759,2632.8,2632.1,3.2078]
[1727141856554,0.37988,2632.5,2632.1,3.2078]
[1727141856754,0.3681,2632.8,2632.1,3.2078]
[1727141856953,0.37985,2632.6,2632.1,3.58773]
[1727141857153,0.37985,2632.6,2632.1,3.2078]
[1727141857865,0.37986,2632.6,2632.1,3.2078]
[1727141858054,0.37987,2632.5,2632.1,3.2078]
[1727141858559,0.37987,2632.5,2631.9,1.14655]
[1727141858757,0.37988,2632.4,2631.9,1.14655]
[1727141858955,3.2078,2632.7,2632.0,3.2078]
[1727141858956,0.37988,2632.5,2632.0,3.2078]